fUST/lending_fUST_20240804
["ID","MTS","AMOUNT","RATE_DAILY","PERIOD"]
[334106378,1722771032031,-500.0,0.00015494,2]
[334106379,1722771032041,-4922.43,0.00015494,2]
[334106380,1722771032051,-500.0,0.00015494,2]
[334106381,1722771032060,-2018.6,0.00015494,2]
[334106382,1722771032069,-500.0,0.00015494,2]
[334106383,1722771032080,-500.0,0.00015494,2]
[334106385,1722771032089,-500.0,0.00015494,2]
[334106386,1722771032099,-500.0,0.00015494,2]
[334106387,1722771032109,-664.05347163,0.00015495,2]
[334106388,1722771032130,-14183.90463203,0.00015495,2]
[334106389,1722771032142,-200.0,0.00015496,2]
[334106390,1722771032152,-70556.0770911,0.00015574,2]
[334106391,1722771032162,-21816.26565443,0.00015575,2]
[334106421,1722771040224,-500.0,0.00015494,2]
[334106422,1722771040235,-500.0,0.00015494,2]
[334106423,1722771040250,-1702.42670927,0.00015575,2]
[334106424,1722771040261,-187.63108842,0.00015583,2]
[334106425,1722771040273,-500.0,0.00015583,2]
[334106426,1722771040284,-500.0,0.00015583,2]
[334106427,1722771040295,-500.0,0.00015583,2]
[334106428,1722771040305,-500.0,0.00015583,2]
[334106429,1722771040315,-194.19967349,0.00015583,2]
[334106430,1722771040325,-500.0,0.00015583,2]
[334106431,1722771040335,-1471.13,0.00015583,2]
[334106432,1722771040344,-500.0,0.00015583,2]
[334106433,1722771040354,-500.0,0.00015583,2]
[334106434,1722771040364,-500.0,0.00015583,2]
[334106435,1722771040374,-500.0,0.00015583,2]
[334106436,1722771040383,-500.0,0.00015583,2]
[334106437,1722771040393,-500.0,0.00015583,2]
[334106438,1722771040403,-500.0,0.00015583,2]
[334106439,1722771040412,-500.0,0.00015583,2]
[334106440,1722771040422,-500.0,0.00015583,2]
[334106441,1722771040432,-500.0,0.00015583,2]
[334106442,1722771040442,-500.0,0.00015583,2]
[334106443,1722771040451,-500.0,0.00015583,2]
[334106444,1722771040463,-500.0,0.00015583,2]
[334106445,1722771040475,-2565.82,0.00015583,2]
[334106446,1722771040487,-1123.64,0.00015583,2]
[334106447,1722771040500,-500.0,0.00015583,2]
[334106448,1722771040511,-3535.64487054,0.00015584,5]
[334106449,1722771040523,-500.0,0.00015584,2]
[334106450,1722771040532,-500.0,0.00015584,2]
[334106451,1722771040543,-500.0,0.00015584,2]
[334106452,1722771040554,-500.0,0.00015584,2]
[334106453,1722771040567,-500.0,0.00015584,2]
[334106454,1722771040579,-500.0,0.00015584,2]
[334106455,1722771040590,-537.45581737,0.00015584,2]
[334106456,1722771040600,-500.0,0.00015584,2]
[334106457,1722771040610,-500.0,0.00015584,2]
[334106458,1722771040620,-500.0,0.00015584,2]
[334106459,1722771040631,-500.0,0.00015584,2]
[334106460,1722771040641,-500.0,0.00015584,2]
[334106461,1722771040652,-500.0,0.00015584,2]
[334106462,1722771040663,-500.0,0.00015584,2]
[334106463,1722771040673,-500.0,0.00015584,2]
[334106464,1722771040684,-504.20177658,0.00015584,2]
[334106465,1722771040695,-500.0,0.00015584,2]
[334106466,1722771040707,-509.83711639,0.00015584,2]
[334106467,1722771040718,-377.49011062,0.00015584,2]
[334106468,1722771040728,-502.70942991,0.00015584,2]
[334106469,1722771040740,-500.0,0.00015584,2]
[334106470,1722771040752,-500.0,0.00015584,2]
[334106471,1722771040763,-57.28108622,0.00015584,2]
[334106472,1722771041023,-442.71891378,0.00015584,2]
[334106473,1722771041034,-647.36847481,0.00015584,2]
[334106474,1722771041045,-503.190749,0.00015584,2]
[334106475,1722771041054,-500.0,0.00015584,2]
[334106476,1722771041066,-500.0,0.00015584,2]
[334106477,1722771041077,-500.0,0.00015584,2]
[334106478,1722771041087,-500.0,0.00015584,2]
[334106479,1722771041099,-500.0,0.00015584,2]
[334106480,1722771041110,-504.63770719,0.00015584,2]
[334106481,1722771041119,-500.0,0.00015584,2]
[334106482,1722771041130,-500.0,0.00015584,2]
[334106483,1722771041143,-500.0,0.00015584,2]
[334106484,1722771041155,-500.0,0.00015584,2]
[334106485,1722771041165,-500.0,0.00015584,2]
[334106486,1722771041177,-500.0,0.00015584,2]
[334106487,1722771041188,-500.0,0.00015584,2]
[334106488,1722771041200,-500.0,0.00015584,2]
[334106489,1722771041209,-500.0,0.00015584,2]
[334106490,1722771041222,-500.0,0.00015584,2]
[334106491,1722771041231,-500.0,0.00015584,2]
[334106492,1722771041241,-500.0,0.00015584,2]
[334106493,1722771041251,-500.0,0.00015584,2]
[334106494,1722771041260,-500.0,0.00015584,2]
[334106495,1722771041272,-500.0,0.00015584,2]
[334106496,1722771041283,-500.0,0.00015584,2]
[334106497,1722771041297,-500.0,0.00015584,2]
[334106498,1722771041309,-500.0,0.00015584,2]
[334106499,1722771041321,-500.0,0.00015584,2]
[334106500,1722771041332,-500.0,0.00015584,2]
[334106501,1722771041343,-500.0,0.00015584,2]
[334106502,1722771041354,-316.18399748,0.00015584,2]
[334106503,1722771041364,-500.0,0.00015584,2]
[334106504,1722771041376,-500.0,0.00015584,2]
[334106505,1722771041387,-500.0,0.00015584,2]
[334106506,1722771041397,-500.0,0.00015584,2]
[334106507,1722771041407,-445.50083456,0.00015584,2]
[334106508,1722771041420,-500.0,0.00015584,2]
[334106509,1722771041431,-500.0,0.00015584,2]
[334106510,1722771041441,-500.0,0.00015584,2]
[334106511,1722771041453,-500.0,0.00015584,2]
[334106512,1722771041462,-500.0,0.00015584,2]
[334106513,1722771041474,-500.0,0.00015584,2]
[334106514,1722771041485,-500.0,0.00015584,2]
[334106515,1722771041498,-500.0,0.00015584,2]
[334106516,1722771041509,-500.0,0.00015584,2]
[334106517,1722771041520,-500.0,0.00015584,2]
[334106518,1722771041531,-500.0,0.00015584,2]
[334106519,1722771041541,-500.0,0.00015584,2]
[334106520,1722771041554,-500.0,0.00015584,2]
[334106521,1722771041566,-500.0,0.00015584,2]
[334106522,1722771041575,-544.8753209,0.00015584,2]
[334106523,1722771041584,-500.0,0.00015584,2]
[334106524,1722771041594,-500.0,0.00015584,2]
[334106525,1722771041603,-500.0,0.00015584,2]
[334106526,1722771041612,-500.0,0.00015584,2]
[334106527,1722771041622,-500.0,0.00015584,2]
[334106528,1722771041631,-500.84008749,0.00015584,2]
[334106529,1722771041641,-500.0,0.00015584,2]
[334106530,1722771041651,-500.0,0.00015584,2]
[334106531,1722771041661,-500.0,0.00015584,2]
[334106532,1722771041671,-500.0,0.00015584,2]
[334106533,1722771041681,-500.0,0.00015584,2]
[334106534,1722771041691,-500.0,0.00015584,2]
[334106535,1722771041700,-151.0,0.00015584,2]
[334106536,1722771041712,-503.19008525,0.00015584,2]
[334106537,1722771041723,-151.0,0.00015584,2]
[334106538,1722771041733,-500.0,0.00015584,2]
[334106539,1722771041742,-500.0,0.00015584,2]
[334106540,1722771041752,-500.0,0.00015584,2]
[334106541,1722771041762,-500.0,0.00015584,2]
[334106542,1722771041771,-500.0,0.00015584,2]
[334106543,1722771041781,-500.0,0.00015584,2]
[334106544,1722771041791,-500.0,0.00015584,2]
[334106545,1722771041801,-500.0,0.00015584,2]
[334106546,1722771041810,-500.0,0.00015584,2]
[334106547,1722771041820,-514.98561852,0.00015584,2]
[334106548,1722771041832,-500.0,0.00015584,2]
[334106549,1722771041843,-500.0,0.00015584,2]
[334106550,1722771041853,-500.0,0.00015584,2]
[334106551,1722771041865,-500.0,0.00015584,2]
[334106552,1722771041875,-500.0,0.00015584,2]
[334106553,1722771041885,-500.0,0.00015584,2]
[334106554,1722771041897,-500.0,0.00015584,2]
[334106555,1722771041908,-500.0,0.00015584,2]
[334106556,1722771041918,-255.15035679,0.00015584,2]
[334106557,1722771041929,-500.0,0.00015584,2]
[334106558,1722771041940,-151.0,0.00015584,2]
[334106559,1722771041950,-151.0,0.00015584,2]
[334106560,1722771041960,-151.0,0.00015584,2]
[334106561,1722771041969,-151.0,0.00015584,2]
[334106562,1722771041979,-500.0,0.00015584,2]
[334106563,1722771041989,-500.0,0.00015584,2]
[334106564,1722771041999,-506.05120005,0.00015584,2]
[334106565,1722771042008,-500.0,0.00015584,2]
[334106566,1722771042018,-500.0,0.00015584,2]
[334106567,1722771042027,-635.79,0.00015584,2]
[334106568,1722771042036,-518.40681685,0.00015584,2]
[334106569,1722771042047,-192.18361047,0.00015584,2]
[334106570,1722771042056,-500.0,0.00015584,2]
[334106571,1722771042066,-500.0,0.00015584,2]
[334106572,1722771042076,-500.0,0.00015584,2]
[334106573,1722771042086,-440.781386,0.00015584,2]
[334106574,1722771042096,-440.781386,0.00015584,2]
[334106575,1722771042107,-500.0,0.00015584,2]
[334106576,1722771042118,-440.781386,0.00015584,2]
[334106577,1722771042127,-440.781386,0.00015584,2]
[334106578,1722771042137,-500.0,0.00015584,2]
[334106579,1722771042156,-618.3759048,0.00015584,2]
[334106580,1722771042169,-500.0,0.00015584,2]
[334106581,1722771042179,-504.83666989,0.00015584,2]
[334106582,1722771042188,-506.74168294,0.00015584,2]
[334106583,1722771042200,-500.0,0.00015584,2]
[334106584,1722771042214,-504.15250143,0.00015584,2]
[334106585,1722771042225,-500.0,0.00015584,2]
[334106586,1722771042236,-350.31172901,0.00015584,2]
[334106587,1722771042246,-501.50077007,0.00015584,2]
[334106588,1722771042256,-500.0,0.00015584,2]
[334106589,1722771042268,-500.0,0.00015584,2]
[334106590,1722771042282,-502.26623362,0.00015584,2]
[334106591,1722771042293,-513.45485828,0.00015584,2]
[334106592,1722771042304,-500.0,0.00015584,2]
[334106593,1722771042313,-500.0,0.00015584,2]
[334106594,1722771042324,-500.0,0.00015584,2]
[334106595,1722771042334,-500.0,0.00015584,2]
[334106596,1722771042343,-500.0,0.00015584,2]
[334106597,1722771042353,-500.0,0.00015584,2]
[334106598,1722771042363,-2722.03,0.00015584,2]
[334106600,1722771042373,-504.77826167,0.00015584,2]
[334106602,1722771042383,-2722.03,0.00015584,2]
[334106604,1722771042393,-500.0,0.00015584,2]
[334106606,1722771042403,-500.0,0.00015584,2]
[334106608,1722771042412,-592.87907417,0.00015584,2]
[334106610,1722771042422,-516.1871869,0.00015584,2]
[334106611,1722771042432,-721.4,0.00015584,2]
[334106612,1722771042442,-500.0,0.00015584,2]
[334106613,1722771042452,-500.0,0.00015584,2]
[334106614,1722771042462,-500.0,0.00015584,2]
[334106615,1722771042472,-500.0,0.00015584,2]
[334106616,1722771042482,-159.82348243,0.00015584,2]
[334106617,1722771042492,-500.0,0.00015584,2]
[334106618,1722771042502,-511.1433934,0.00015584,2]
[334106619,1722771042513,-363.19735177,0.00015584,2]
[334106620,1722771042522,-500.0,0.00015584,2]
[334106621,1722771042532,-500.0,0.00015584,2]
[334106623,1722771042542,-458.741766,0.00015584,2]
[334106624,1722771042553,-458.741766,0.00015584,2]
[334106625,1722771042564,-458.741766,0.00015584,2]
[334106626,1722771042576,-500.0,0.00015584,2]
[334106627,1722771042587,-500.0,0.00015584,2]
[334106628,1722771042598,-501.14563732,0.00015584,2]
[334106629,1722771042610,-458.741766,0.00015584,2]
[334106630,1722771042621,-458.741766,0.00015584,2]
[334106631,1722771042632,-458.741766,0.00015584,2]
[334106632,1722771042642,-500.0,0.00015584,2]
[334106633,1722771042651,-500.0,0.00015584,2]
[334106634,1722771042661,-749.85,0.00015584,2]
[334106635,1722771042670,-500.0,0.00015584,2]
[334106636,1722771042679,-500.0,0.00015584,2]
[334106637,1722771042690,-151.0,0.00015584,2]
[334106639,1722771042701,-151.0,0.00015584,2]
[334106640,1722771042712,-151.0,0.00015584,2]
[334106641,1722771042721,-1114.41,0.00015584,2]
[334106642,1722771042733,-500.0,0.00015584,2]
[334106644,1722771042744,-500.0,0.00015584,2]
[334106645,1722771042754,-500.0,0.00015584,2]
[334106647,1722771042764,-500.0,0.00015584,2]
[334106648,1722771042775,-500.0,0.00015584,2]
[334106649,1722771042785,-500.0,0.00015584,2]
[334106651,1722771042797,-502.8479274,0.00015584,2]
[334106652,1722771042807,-151.0,0.00015584,2]
[334106653,1722771042817,-151.0,0.00015584,2]
[334106654,1722771042827,-151.0,0.00015584,2]
[334106655,1722771042837,-151.0,0.00015584,2]
[334106656,1722771042847,-500.0,0.00015584,2]
[334106657,1722771042857,-151.0,0.00015584,2]
[334106658,1722771042868,-151.0,0.00015584,2]
[334106659,1722771042879,-151.0,0.00015584,2]
[334106660,1722771042890,-500.0,0.00015584,2]
[334106661,1722771042901,-151.0,0.00015584,2]
[334106662,1722771042910,-500.0,0.00015584,2]
[334106663,1722771042920,-477.67427206,0.00015584,2]
[334106664,1722771042931,-500.0,0.00015584,2]
[334106665,1722771042940,-500.0,0.00015584,2]
[334106666,1722771042950,-500.0,0.00015584,2]
[334106667,1722771042960,-529.99321044,0.00015584,2]
[334106668,1722771042971,-151.0,0.00015584,2]
[334106669,1722771042984,-151.0,0.00015584,2]
[334106670,1722771042995,-308.07521683,0.00015584,2]
[334106671,1722771043005,-151.0,0.00015584,2]
[334106673,1722771043015,-151.0,0.00015584,2]
[334106675,1722771043026,-500.0,0.00015584,2]
[334106678,1722771043038,-500.0,0.00015584,2]
[334106681,1722771043050,-500.0,0.00015584,2]
[334106684,1722771043067,-151.0,0.00015584,2]
[334106687,1722771043078,-151.0,0.00015584,2]
[334106690,1722771043089,-500.0,0.00015584,2]
[334106691,1722771043100,-500.0,0.00015584,2]
[334106692,1722771043109,-500.0,0.00015584,2]
[334106693,1722771043120,-500.0,0.00015584,2]
[334106694,1722771043130,-500.0,0.00015584,2]
[334106695,1722771043144,-500.0,0.00015584,2]
[334106696,1722771043153,-500.0,0.00015584,2]
[334106697,1722771043164,-500.0,0.00015584,2]
[334106698,1722771043175,-500.0,0.00015584,2]
[334106699,1722771043184,-500.0,0.00015584,2]
[334106700,1722771043196,-195.67935358,0.00015584,2]
[334106701,1722771043208,-253.75529796,0.00015584,2]
[334106702,1722771043222,-500.0,0.00015584,2]
[334106703,1722771043232,-500.0,0.00015584,2]
[334106704,1722771043245,-500.0,0.00015584,2]
[334106705,1722771043256,-430.25137667,0.00015584,2]
[334106706,1722771043431,-69.74862333,0.00015584,2]
[334106707,1722771043444,-500.0,0.00015584,2]
[334106708,1722771043455,-159.71776379,0.00015584,2]
[334106709,1722771043467,-500.0,0.00015584,2]
[334106710,1722771043477,-338.25149807,0.00015584,2]
[334106721,1722771413684,156.96415589,9.999e-05,2]
[334106724,1722771472249,156.96415589,0.0001212,2]
[334106727,1722771658696,282.64894943,9.999e-05,2]
[334106730,1722771850172,286.58862085,0.00014,2]
[334106731,1722771906017,164.11,0.00010959,2]
[334106732,1722772043502,25884.76,0.00025,60]
[334106733,1722772046321,-179.532469,0.00014173,2]
[334106734,1722772046348,-157.521555,0.00014222,2]
[334106735,1722772046371,-482.255384,0.00014247,2]
[334106736,1722772046394,-200.0,0.00014795,2]
[334106737,1722772046417,-681.38292253,0.00014985,2]
[334106738,1722772046440,-147.77466238,0.00015,2]
[334106739,1722772048135,-344.62873525,0.00015,2]
[334106740,1722772048156,-1209.56121331,0.00015138,2]
[334106742,1722772099253,816.16582707,0.00013283,2]
[334106800,1722772231945,-169.3475345,0.00014247,2]
[334106802,1722772231955,-179.532469,0.00014468,2]
[334106804,1722772231965,-200.0,0.00014795,2]
[334106806,1722772231975,-367.88690048,0.00015145,2]
[334106808,1722772231986,-3568.96617518,0.00015384,2]
[334106810,1722772232000,-1599.07483465,0.00015384,2]
[334106813,1722772232011,-172.872102,0.00015393,2]
[334106814,1722772232020,-172.87210197,0.00015444,2]
[334106816,1722772232029,-10387.98096138,0.00015483,2]
[334106902,1722772240161,-434.02247936,0.00015483,2]
[334106905,1722772240175,-8152.18608646,0.00015483,2]
[334106907,1722772240184,-18974.1895272,0.00015484,2]
[334106909,1722772240194,-5139.78556793,0.00015484,2]
[334106911,1722772240203,-18974.1895272,0.0001549,2]
[334106913,1722772240214,-500.0,0.00015492,2]
[334106915,1722772240225,-415.44808846,0.00015492,2]
[334106917,1722772240235,-500.0,0.00015492,2]
[334106920,1722772240247,-500.0,0.00015492,2]
[334106922,1722772240258,-362.94441921,0.00015492,2]
[334106924,1722772240269,-647.55605812,0.00015492,2]
[334106927,1722772240279,-500.0,0.00015492,2]
[334106930,1722772240291,-500.0,0.00015492,2]
[334106933,1722772240300,-500.0,0.00015492,2]
[334106937,1722772240312,-500.0,0.00015492,2]
[334106941,1722772240325,-492.05588508,0.00015492,2]
[334106944,1722772240334,-4717.33,0.00015492,2]
[334106947,1722772240343,-500.0,0.00015492,2]
[334106950,1722772240352,-1934.49,0.00015492,2]
[334106953,1722772240361,-500.0,0.00015492,2]
[334106956,1722772240370,-500.0,0.00015492,2]
[334106958,1722772240379,-372.18641621,0.00015492,2]
[334106961,1722772240388,-500.0,0.00015492,2]
[334106965,1722772240397,-500.0,0.00015492,2]
[334106968,1722772240407,-500.0,0.00015492,2]
[334106971,1722772240417,-647.36847481,0.00015493,2]
[334106974,1722772240427,-500.0,0.00015493,2]
[334106977,1722772240436,-500.0,0.00015493,2]
[334106979,1722772240445,-500.0,0.00015493,2]
[334106982,1722772240455,-500.0,0.00015493,2]
[334106985,1722772240464,-500.0,0.00015493,2]
[334106989,1722772240474,-500.0,0.00015493,2]
[334106992,1722772240483,-500.0,0.00015493,2]
[334106994,1722772240493,-500.0,0.00015493,2]
[334106996,1722772240501,-500.0,0.00015493,2]
[334106998,1722772240510,-500.0,0.00015493,2]
[334107000,1722772240522,-500.0,0.00015493,2]
[334107002,1722772240530,-500.0,0.00015493,2]
[334107004,1722772240541,-500.0,0.00015493,2]
[334107006,1722772240551,-500.0,0.00015493,2]
[334107008,1722772240564,-500.0,0.00015493,2]
[334107011,1722772240574,-500.0,0.00015493,2]
[334107013,1722772240584,-500.0,0.00015493,2]
[334107015,1722772240594,-500.0,0.00015493,2]
[334107017,1722772240606,-500.0,0.00015493,2]
[334107019,1722772240616,-500.0,0.00015493,2]
[334107021,1722772240627,-500.0,0.00015493,2]
[334107024,1722772240638,-500.0,0.00015493,2]
[334107026,1722772240648,-198.65344865,0.00015493,2]
[334107041,1722772240783,-301.34655135,0.00015493,2]
[334107043,1722772240792,-500.0,0.00015493,2]
[334107046,1722772240803,-279.38226997,0.00015493,2]
[334107048,1722772240813,-500.0,0.00015493,2]
[334107050,1722772240824,-500.0,0.00015493,2]
[334107052,1722772240834,-535.93977145,0.00015493,2]
[334107054,1722772240843,-470.39593232,0.00015493,2]
[334107146,1722772243098,-29.60406768,0.00015493,2]
[334107147,1722772243108,-500.0,0.00015493,2]
[334107148,1722772243118,-500.0,0.00015493,2]
[334107149,1722772243129,-500.0,0.00015493,2]
[334107150,1722772243139,-500.0,0.00015493,2]
[334107151,1722772243152,-500.0,0.00015493,2]
[334107152,1722772243163,-520.29945141,0.00015493,2]
[334107153,1722772243174,-448.48008776,0.00015493,2]
[334107155,1722772243183,-500.0,0.00015493,2]
[334107157,1722772243192,-500.0,0.00015493,2]
[334107159,1722772243201,-691.34,0.00015493,2]
[334107161,1722772243210,-1409.84,0.00015493,2]
[334107163,1722772243219,-500.0,0.00015493,2]
[334107165,1722772243229,-500.0,0.00015493,2]
[334107168,1722772243240,-2809.39,0.00015493,2]
[334107170,1722772243249,-316.59911844,0.00015493,2]
[334107252,1722772982996,620.96,0.00010959,2]
[334107253,1722773125088,394.91628467,0.00013283,2]
[334107254,1722773159109,-487.919411,0.00014247,2]
[334107255,1722773159132,-221.187379,0.00014371,2]
[334107256,1722773159156,-620.94742038,0.00014381,2]
[334107257,1722773245122,-1750.53632584,0.00014309,2]
[334107258,1722773254102,-628.51625376,0.00014309,2]
[334107259,1722773254124,-200.0,0.00014795,2]
[334107260,1722773254147,-347.77955978,0.00015,4]
[334107261,1722773254169,-152.99335601,0.00015084,2]
[334107262,1722773254191,-158.48039525,0.00015113,2]
[334107304,1722773432124,-195.31615631,0.00014999,2]
[334107307,1722773432134,-1056.16177277,0.00015101,2]
[334107326,1722773432254,-3454.55740076,0.00015101,2]
[334107347,1722773432382,-153.0,0.000153,2]
[334107349,1722773432392,-366.4812016,0.000153,2]
[334107351,1722773432402,-726.1197641,0.00015383,2]
[334107353,1722773432411,-300.0,0.00015391,2]
[334107355,1722773432421,-1633.63296512,0.00015392,2]
[334107357,1722773432430,-1301.10859394,0.00015392,2]
[334107359,1722773432442,-302.0,0.00015392,2]
[334107436,1722773438386,-3536.67697399,0.00015392,2]
[334107437,1722773438397,-200.0,0.00015394,2]
[334107438,1722773438407,-726.11976409,0.00015407,2]
[334107439,1722773438418,-726.11976409,0.00015431,2]
[334107440,1722773438429,-726.11976409,0.00015454,2]
[334107441,1722773438440,-500.0,0.00015471,2]
[334107442,1722773438451,-500.0,0.00015471,2]
[334107443,1722773438463,-500.0,0.00015471,2]
[334107444,1722773438472,-500.0,0.00015471,2]
[334107445,1722773438482,-500.0,0.00015471,2]
[334107446,1722773438494,-500.0,0.00015471,2]
[334107447,1722773438506,-276.20234612,0.00015471,2]
[334107451,1722773440468,-223.79765388,0.00015471,2]
[334107452,1722773440480,-223.22571712,0.00015471,2]
[334107453,1722773440524,-276.77428288,0.00015471,2]
[334107454,1722773440533,-500.0,0.00015471,2]
[334107455,1722773440542,-500.0,0.00015471,2]
[334107456,1722773440552,-500.0,0.00015471,2]
[334107457,1722773440561,-500.0,0.00015471,2]
[334107458,1722773440570,-500.0,0.00015471,2]
[334107459,1722773440579,-500.0,0.00015471,2]
[334107460,1722773440589,-500.0,0.00015471,2]
[334107461,1722773440599,-500.0,0.00015471,2]
[334107462,1722773440609,-643.58904355,0.00015471,2]
[334107463,1722773440618,-500.0,0.00015471,2]
[334107464,1722773440628,-500.0,0.00015471,2]
[334107465,1722773440639,-500.0,0.00015471,2]
[334107466,1722773440648,-500.0,0.00015471,2]
[334107467,1722773440657,-19427.9964785,0.00015471,2]
[334107468,1722773440666,-200.0,0.00015473,2]
[334107469,1722773440676,-19427.9964785,0.00015473,2]
[334107470,1722773440685,-726.11976409,0.00015478,2]
[334107471,1722773440695,-500.0,0.0001548,2]
[334107472,1722773440704,-4717.33,0.0001548,2]
[334107473,1722773440713,-500.0,0.0001548,2]
[334107474,1722773440722,-2051.9,0.0001548,2]
[334107475,1722773440731,-500.0,0.0001548,2]
[334107476,1722773440741,-500.0,0.0001548,2]
[334107477,1722773440757,-500.0,0.0001548,2]
[334107478,1722773440766,-500.0,0.0001548,2]
[334107479,1722773440775,-500.0,0.0001548,2]
[334107480,1722773440784,-287.30962964,0.0001548,2]
[334107481,1722773440794,-500.0,0.0001548,2]
[334107482,1722773440803,-500.0,0.0001548,2]
[334107483,1722773440813,-500.0,0.0001548,2]
[334107484,1722773440822,-1767.82243527,0.00015481,5]
[334107485,1722773440831,-500.0,0.00015481,2]
[334107486,1722773440840,-500.0,0.00015481,2]
[334107487,1722773440850,-500.0,0.00015481,2]
[334107488,1722773440859,-500.0,0.00015481,2]
[334107489,1722773440868,-415.44808846,0.00015481,2]
[334107490,1722773440877,-647.36847481,0.00015481,2]
[334107491,1722773440886,-500.0,0.00015481,2]
[334107492,1722773440896,-647.55605812,0.00015481,2]
[334107493,1722773440905,-500.0,0.00015481,2]
[334107494,1722773440915,-500.0,0.00015481,2]
[334107495,1722773440927,-500.0,0.00015481,2]
[334107496,1722773440936,-500.0,0.00015481,2]
[334107497,1722773440945,-500.0,0.00015481,2]
[334107498,1722773440955,-500.0,0.00015481,2]
[334107499,1722773440965,-362.94441921,0.00015481,2]
[334107500,1722773440974,-500.0,0.00015481,2]
[334107501,1722773440983,-500.0,0.00015481,2]
[334107502,1722773440996,-278.95062235,0.00015481,2]
[334107503,1722773441006,-550.30841927,0.00015481,2]
[334107504,1722773441015,-500.0,0.00015481,2]
[334107505,1722773441023,-500.0,0.00015481,2]
[334107506,1722773441032,-500.0,0.00015481,2]
[334107507,1722773441041,-500.0,0.00015481,2]
[334107508,1722773441051,-500.0,0.00015481,2]
[334107509,1722773441061,-558.57406143,0.00015481,2]
[334107510,1722773441072,-500.0,0.00015481,2]
[334107511,1722773441083,-502.13919449,0.00015481,2]
[334107512,1722773441095,-583.14847274,0.00015481,2]
[334107513,1722773441105,-332.60025365,0.00015481,2]
[334107514,1722773441116,-500.0,0.00015481,2]
[334107515,1722773441127,-500.0,0.00015481,2]
[334107516,1722773441137,-500.0,0.00015481,2]
[334107517,1722773441148,-526.24620775,0.00015481,2]
[334107518,1722773441159,-500.0,0.00015481,2]
[334107519,1722773441169,-500.0,0.00015481,2]
[334107520,1722773441179,-500.0,0.00015481,2]
[334107521,1722773441190,-500.0,0.00015481,2]
[334107522,1722773441199,-500.0,0.00015481,2]
[334107523,1722773441208,-500.0,0.00015481,2]
[334107524,1722773441218,-500.0,0.00015481,2]
[334107525,1722773441227,-500.0,0.00015481,2]
[334107526,1722773441236,-500.0,0.00015481,2]
[334107527,1722773441248,-500.0,0.00015481,2]
[334107528,1722773441257,-500.0,0.00015481,2]
[334107529,1722773441266,-500.0,0.00015481,2]
[334107530,1722773441278,-500.0,0.00015481,2]
[334107531,1722773441394,-500.0,0.00015481,2]
[334107532,1722773441404,-500.0,0.00015481,2]
[334107533,1722773441415,-500.0,0.00015481,2]
[334107534,1722773441426,-500.0,0.00015481,2]
[334107535,1722773441437,-500.0,0.00015481,2]
[334107536,1722773441447,-500.0,0.00015481,2]
[334107537,1722773441458,-500.0,0.00015481,2]
[334107538,1722773441467,-501.36180254,0.00015481,2]
[334107539,1722773441478,-500.0,0.00015481,2]
[334107540,1722773441489,-500.0,0.00015481,2]
[334107541,1722773441508,-500.0,0.00015481,2]